fUSD/lending_fUSD_20240615
["ID","MTS","AMOUNT","RATE_DAILY","PERIOD"]
[329573563,1718451134261,-500.0,0.00023835,3]
[329573564,1718451134275,-500.0,0.00023835,3]
[329573565,1718451134308,-579.75,0.00023835,3]
[329573566,1718451134320,-500.0,0.00023835,3]
[329573567,1718451134333,-500.0,0.00023835,3]
[329573568,1718451134350,-575.46,0.00023835,3]
[329573569,1718451134384,-500.0,0.00023835,3]
[329573570,1718451134402,-500.0,0.00023835,3]
[329573571,1718451134427,-500.0,0.00023835,3]
[329573572,1718451134446,-530.07772963,0.00023835,3]
[329573573,1718451134468,-500.0,0.00023835,3]
[329573574,1718451134503,-500.0,0.00023835,3]
[329573575,1718451134525,-544.54122702,0.00023835,3]
[329573576,1718451134542,-500.0,0.00023835,3]
[329573577,1718451134568,-532.67,0.00023835,3]
[329573578,1718451134591,-309.7365319,0.00023835,3]
[329573579,1718451134618,-500.0,0.00023835,3]
[329573580,1718451134655,-500.0,0.00023835,3]
[329573581,1718451134676,-173.61,0.00023835,3]
[329573582,1718451134699,-500.0,0.00023835,3]
[329573583,1718451134741,-500.0,0.00023835,3]
[329573584,1718451134752,-500.0,0.00023835,3]
[329573585,1718451134764,-500.0,0.00023835,3]
[329573586,1718451134777,-687.46,0.00023835,3]
[329573587,1718451134801,-500.0,0.00023835,3]
[329573588,1718451134837,-500.0,0.00023835,3]
[329573589,1718451134853,-1092.86,0.00023835,3]
[329573590,1718451134900,-524.53,0.00023835,3]
[329573591,1718451134928,-500.0,0.00023835,3]
[329573592,1718451134947,-416.80097772,0.00023835,3]
[329573593,1718451134969,-1502.19,0.00023835,3]
[329573594,1718451135005,-500.0,0.00023835,3]
[329573595,1718451135031,-500.0,0.00023835,3]
[329573596,1718451135047,-500.0,0.00023835,3]
[329573597,1718451135068,-500.0,0.00023835,3]
[329573598,1718451135084,-500.0,0.00023835,3]
[329573599,1718451135098,-500.0,0.00023835,3]
[329573600,1718451135110,-500.0,0.00023835,3]
[329573601,1718451135131,-500.0,0.00023835,3]
[329573602,1718451135148,-500.0,0.00023835,3]
[329573603,1718451135176,-171.44958277,0.00023835,3]
[329573604,1718451135209,-612.77,0.00023835,3]
[329573605,1718451135220,-500.0,0.00023835,3]
[329573606,1718451135264,-500.0,0.00023835,3]
[329573607,1718451135294,-500.0,0.00023835,3]
[329573608,1718451135458,-500.0,0.00023835,3]
[329573609,1718451135494,-546.66,0.00023835,3]
[329573610,1718451135521,-500.0,0.00023835,3]
[329573611,1718451135532,-915.8,0.00023835,3]
[329573612,1718451135574,-500.0,0.00023835,3]
[329573613,1718451135585,-500.0,0.00023835,3]
[329573614,1718451135632,-606.07059621,0.00023835,3]
[329573615,1718451135643,-500.0,0.00023835,3]
[329573616,1718451135654,-553.21,0.00023835,3]
[329573617,1718451135666,-500.0,0.00023835,3]
[329573618,1718451135677,-1033.63,0.00023835,3]
[329573619,1718451135692,-500.0,0.00023835,3]
[329573620,1718451135711,-500.0,0.00023835,3]
[329573621,1718451135723,-433.20466554,0.00023835,3]
[329573622,1718451135735,-2515.97,0.00023835,3]
[329573623,1718451135751,-605.24,0.00023835,3]
[329573624,1718451135761,-500.0,0.00023835,3]
[329573625,1718451135775,-500.0,0.00023835,3]
[329573626,1718451135787,-500.0,0.00023835,3]
[329573627,1718451135798,-500.0,0.00023835,3]
[329573628,1718451135809,-500.0,0.00023835,3]
[329573629,1718451135820,-500.0,0.00023835,3]
[329573630,1718451135832,-500.0,0.00023835,3]
[329573631,1718451135843,-500.0,0.00023835,3]
[329573632,1718451135863,-500.0,0.00023835,3]
[329573633,1718451135874,-500.0,0.00023835,3]
[329573634,1718451135888,-1014.91,0.00023835,3]
[329573635,1718451135905,-517.68,0.00023835,3]
[329573636,1718451135921,-500.0,0.00023835,3]
[329573637,1718451135934,-574.11,0.00023835,3]
[329573638,1718451135954,-500.0,0.00023835,3]
[329573639,1718451135972,-500.0,0.00023835,3]
[329573640,1718451135995,-500.0,0.00023835,3]
[329573641,1718451136008,-1028.74,0.00023835,3]
[329573642,1718451136022,-500.0,0.00023835,3]
[329573643,1718451136040,-500.0,0.00023835,3]
[329573644,1718451136055,-260.71,0.00023835,3]
[329573645,1718451136075,-500.0,0.00023835,3]
[329573646,1718451136088,-2483.59,0.00023835,3]
[329573647,1718451136102,-500.0,0.00023835,3]
[329573648,1718451136113,-500.0,0.00023835,3]
[329573649,1718451136125,-500.0,0.00023835,3]
[329573650,1718451136143,-500.0,0.00023835,3]
[329573651,1718451136155,-500.0,0.00023835,3]
[329573652,1718451136170,-434.4987432,0.00023835,3]
[329573653,1718451136188,-628.76,0.00023835,3]
[329573654,1718451136206,-500.0,0.00023835,3]
[329573655,1718451136217,-500.0,0.00023835,3]
[329573656,1718451136228,-500.0,0.00023835,3]
[329573657,1718451136242,-500.0,0.00023835,3]
[329573658,1718451136258,-500.0,0.00023835,3]
[329573659,1718451136270,-2312.07,0.00023835,3]
[329573660,1718451136290,-500.0,0.00023835,3]
[329573661,1718451136305,-582.73,0.00023835,3]
[329573662,1718451136323,-500.0,0.00023835,3]
[329573663,1718451136340,-1019.86,0.00023835,3]
[329573664,1718451136363,-317.96002399,0.00023835,3]
[329573665,1718451136377,-500.0,0.00023835,3]
[329573666,1718451136390,-505.7,0.00023835,3]
[329573667,1718451136401,-512.53,0.00023835,3]
[329573668,1718451136417,-887.95,0.00023835,3]
[329573669,1718451136429,-526.05,0.00023835,3]
[329573670,1718451136447,-500.0,0.00023835,3]
[329573671,1718451136474,-500.0,0.00023835,3]
[329573672,1718451136490,-500.0,0.00023835,3]
[329573673,1718451136509,-541.04,0.00023835,3]
[329573674,1718451136521,-500.0,0.00023835,3]
[329573675,1718451136532,-500.0,0.00023835,3]
[329573676,1718451136545,-738.8,0.00023835,3]
[329573677,1718451136584,-500.0,0.00023835,3]
[329573678,1718451136615,-413.7516789,0.00023835,3]
[329573679,1718451136628,-500.0,0.00023835,3]
[329573680,1718451136641,-1715.51,0.00023835,3]
[329573681,1718451136652,-500.0,0.00023835,3]
[329573682,1718451136663,-740.24,0.00023835,3]
[329573683,1718451136684,-960.17,0.00023835,3]
[329573684,1718451136711,-595.6,0.00023835,3]
[329573685,1718451136723,-500.0,0.00023835,3]
[329573686,1718451136769,-582.42,0.00023835,3]
[329573687,1718451136785,-653.19,0.00023835,3]
[329573688,1718451136816,-500.0,0.00023835,3]
[329573689,1718451136829,-500.0,0.00023835,3]
[329573690,1718451136844,-500.0,0.00023835,3]
[329573691,1718451136857,-500.0,0.00023835,3]
[329573692,1718451136871,-500.0,0.00023835,3]
[329573693,1718451136891,-638.94,0.00023835,3]
[329573694,1718451136907,-1207.64,0.00023835,3]
[329573695,1718451136921,-1093.81,0.00023835,3]
[329573696,1718451136933,-500.0,0.00023835,3]
[329573697,1718451136947,-496.30219013,0.00023835,3]
[329573698,1718451136970,-150.0,0.0002386,2]
[329573699,1718451136993,-1696.01893,0.0002386,2]
[329573700,1718451137028,-450.0,0.00023864,2]
[329573701,1718451137039,-188810.35874351,0.0002388,2]
[329573702,1718451137058,-2258.0,0.00023882,2]
[329573703,1718451137085,-150.0,0.00023883,2]
[329573704,1718451137100,-7286.87536154,0.00023915,2]
[329573705,1718451137126,-150.0,0.00023939,2]
[329573706,1718451137138,-153.1,0.00023951,3]
[329573707,1718451137162,-1500.0,0.00023956,2]
[329573708,1718451137180,-150.0,0.00023972,2]
[329573709,1718451137201,-150.0,0.00023983,2]
[329573710,1718451137216,-364.94582972,0.00024,10]
[329573711,1718451137228,-2008.67532974,0.00024,2]
[329573712,1718451137241,-250.07390936,0.00024,2]
[329573713,1718451137253,-250.0,0.00024,3]
[329573714,1718451137266,-296.34791203,0.00024,2]
[329573715,1718451137294,-1550.0,0.00024,2]
[329573716,1718451137304,-6546.35,0.00024,2]
[329573717,1718451137315,-1742.65,0.00024,2]
[329573718,1718451137326,-228.230104,0.00024,4]
[329573719,1718451137342,-173.19785524,0.00024002,2]
[329573720,1718451137363,-1444.2920702,0.0002401,2]
[329573721,1718451137376,-500.0,0.00024012,2]
[329573722,1718451137410,-150.0,0.00024017,2]
[329573723,1718451137420,-159.10664345,0.00024044,2]
[329573724,1718451137432,-156.06221883,0.00024048,2]
[329573725,1718451137445,-150.0,0.00024059,2]
[329573726,1718451137455,-5000.0,0.0002406,2]
[329573727,1718451137465,-1304.0,0.00024061,2]
[329573728,1718451137476,-447.0,0.00024061,2]
[329573729,1718451137489,-150.0,0.00024061,2]
[329573730,1718451137500,-546.0,0.00024061,2]
[329573731,1718451137512,-3196.0,0.00024061,2]
[329573732,1718451137523,-1981.0,0.00024061,2]
[329573733,1718451137542,-5160.0,0.00024061,2]
[329573734,1718451137553,-290.0,0.00024061,2]
[329573735,1718451137564,-4473.221,0.00024061,2]
[329573736,1718451137578,-302.036,0.00024061,2]
[329573737,1718451137591,-1830.0,0.00024061,2]
[329573738,1718451137603,-921.509,0.00024061,2]
[329573739,1718451137616,-5769.0,0.00024061,2]
[329573740,1718451137627,-1195.0,0.00024061,2]
[329573741,1718451137645,-811.0,0.00024061,2]
[329573742,1718451137655,-851.72,0.00024065,2]
[329573743,1718451137683,-835.38,0.00024065,2]
[329573744,1718451137715,-851.72,0.00024065,2]
[329573745,1718451137726,-851.72,0.00024065,2]
[329573746,1718451137737,-851.72,0.00024065,2]
[329573747,1718451137756,-825.28,0.00024065,2]
[329573748,1718451137774,-1696.39,0.00024065,2]
[329573749,1718451137793,-360.76,0.00024068,2]
[329573750,1718451137816,-1500.0,0.00024072,2]
[329573751,1718451137829,-163.06481893,0.00024081,2]
[329573752,1718451137850,-327.9082322,0.00024084,4]
[329573753,1718451137862,-1500.0,0.00024085,2]
[329573754,1718451137875,-160.92175431,0.00024091,2]
[329573755,1718451137908,-25000.0,0.00024094,2]
[329573756,1718451137921,-167.92400973,0.00024096,2]
[329573757,1718451137931,-150.0,0.00024098,2]
[329573758,1718451137947,-2059.15849944,0.000241,2]
[329573759,1718451137966,-504.02087361,0.00024103,2]
[329573760,1718451137993,-500.0,0.00024109,3]
[329573761,1718451138010,-522.01,0.00024109,3]
[329573762,1718451138039,-500.0,0.00024109,3]
[329573763,1718451138052,-500.0,0.00024109,3]
[329573764,1718451138073,-500.0,0.00024109,3]
[329573765,1718451138091,-500.0,0.00024109,3]
[329573766,1718451138103,-487.00504947,0.00024109,3]
[329573767,1718451138124,-500.12,0.00024109,3]
[329573768,1718451138136,-500.0,0.00024109,3]
[329573769,1718451138150,-500.0,0.00024109,3]
[329573770,1718451138166,-500.0,0.00024109,3]
[329573771,1718451138178,-617.41,0.00024109,3]
[329573772,1718451138192,-500.0,0.00024109,3]
[329573773,1718451138226,-500.0,0.00024109,3]
[329573774,1718451138268,-500.0,0.00024109,3]
[329573775,1718451138281,-500.0,0.00024109,3]
[329573776,1718451138296,-500.0,0.00024109,3]
[329573777,1718451138310,-500.0,0.00024109,3]
[329573778,1718451138324,-500.0,0.00024109,3]
[329573779,1718451138336,-500.0,0.00024109,3]
[329573780,1718451138367,-500.0,0.00024109,3]
[329573781,1718451138403,-500.0,0.00024109,3]
[329573782,1718451138421,-500.0,0.00024109,3]
[329573783,1718451138441,-500.0,0.00024109,3]
[329573784,1718451138456,-500.0,0.00024109,3]
[329573785,1718451138471,-500.0,0.00024109,3]
[329573786,1718451138482,-500.0,0.00024109,3]
[329573787,1718451138501,-500.0,0.00024109,3]
[329573788,1718451138512,-500.0,0.00024109,3]
[329573789,1718451138532,-500.0,0.00024109,3]
[329573790,1718451138548,-500.0,0.00024109,3]
[329573791,1718451138561,-593.7,0.00024109,3]
[329573792,1718451138601,-500.0,0.00024109,3]
[329573793,1718451138618,-924.58,0.00024109,3]
[329573794,1718451138672,-723.95,0.00024109,3]
[329573795,1718451138684,-500.0,0.00024109,3]
[329573796,1718451138697,-500.0,0.00024109,3]
[329573797,1718451138721,-672.34,0.00024109,3]
[329573798,1718451138735,-500.0,0.00024109,3]
[329573799,1718451138748,-525.61,0.00024109,3]
[329573800,1718451138766,-500.0,0.00024109,3]
[329573801,1718451138793,-500.0,0.00024109,3]
[329573802,1718451138808,-500.0,0.00024109,3]
[329573803,1718451138823,-500.0,0.00024109,3]
[329573804,1718451138838,-665.35,0.00024109,3]
[329573805,1718451138854,-500.0,0.00024109,3]
[329573806,1718451138877,-500.0,0.00024109,3]
[329573807,1718451138895,-500.0,0.00024109,3]
[329573808,1718451138932,-573.27,0.00024109,3]
[329573809,1718451138964,-500.0,0.00024109,3]
[329573810,1718451138977,-500.0,0.00024109,3]
[329573811,1718451138996,-488.25,0.00024109,3]
[329573812,1718451139011,-500.0,0.00024109,3]
[329573813,1718451139028,-535.22,0.00024109,3]
[329573814,1718451139045,-500.0,0.00024109,3]
[329573815,1718451139069,-500.0,0.00024109,3]
[329573816,1718451139087,-653.69,0.00024109,3]
[329573817,1718451139105,-500.0,0.00024109,3]
[329573818,1718451139137,-717.74,0.00024109,3]
[329573819,1718451139159,-500.0,0.00024109,3]
[329573820,1718451139182,-583.01,0.00024109,3]
[329573821,1718451139200,-697.17,0.00024109,3]
[329573822,1718451139217,-611.55,0.00024109,3]
[329573823,1718451139233,-500.0,0.00024109,3]
[329573824,1718451139245,-689.83,0.00024109,3]
[329573825,1718451139267,-500.0,0.00024109,3]
[329573826,1718451139280,-500.0,0.00024109,3]
[329573827,1718451139292,-500.0,0.00024109,3]
[329573828,1718451139330,-500.0,0.00024109,3]
[329573829,1718451139342,-641.7,0.00024109,3]
[329573830,1718451139360,-893.27,0.00024109,3]
[329573831,1718451139377,-538.02,0.00024109,3]
[329573832,1718451139395,-572.18,0.00024109,3]
[329573833,1718451139408,-561.19,0.00024109,3]
[329573834,1718451139424,-500.0,0.00024109,3]
[329573835,1718451139439,-500.0,0.00024109,3]
[329573836,1718451139452,-284.33609043,0.00024109,3]
[329573837,1718451139470,-500.0,0.00024109,3]
[329573838,1718451139486,-500.0,0.00024109,3]
[329573839,1718451139497,-500.0,0.00024109,3]
[329573840,1718451139509,-500.0,0.00024109,3]
[329573841,1718451139520,-500.0,0.00024109,3]
[329573842,1718451139534,-500.0,0.00024109,3]
[329573843,1718451139547,-519.33,0.00024109,3]
[329573844,1718451139558,-500.0,0.00024109,3]
[329573845,1718451139576,-624.2,0.00024109,3]
[329573846,1718451139596,-500.0,0.00024109,3]
[329573847,1718451139611,-500.0,0.00024109,3]
[329573848,1718451139622,-500.0,0.00024109,3]
[329573849,1718451139638,-500.0,0.00024109,3]
[329573850,1718451139660,-579.75,0.00024109,3]
[329573851,1718451139680,-500.0,0.00024109,3]
[329573852,1718451139716,-172.65622858,0.00024109,3]
[329573853,1718451139734,-575.46,0.00024109,3]
[329573854,1718451139748,-481.85335664,0.00024109,3]
[329573855,1718451139758,-500.0,0.00024109,3]
[329573856,1718451139771,-500.0,0.00024109,3]
[329573857,1718451139783,-281.56403346,0.00024109,3]
[329573858,1718451139794,-500.0,0.00024109,3]
[329573859,1718451139806,-500.0,0.00024109,3]
[329573860,1718451139818,-532.67,0.00024109,3]
[329573861,1718451139829,-500.0,0.00024109,3]
[329573862,1718451139852,-500.0,0.00024109,3]
[329573863,1718451139864,-173.61,0.00024109,3]
[329573864,1718451139874,-500.0,0.00024109,3]
[329573865,1718451139886,-500.0,0.00024109,3]
[329573866,1718451139897,-500.0,0.00024109,3]
[329573867,1718451139909,-500.0,0.00024109,3]
[329573868,1718451139924,-687.46,0.00024109,3]
[329573869,1718451139938,-426.09733045,0.00024109,3]
[329573870,1718451139954,-500.0,0.00024109,3]
[329573871,1718451139965,-1092.86,0.00024109,3]
[329573872,1718451139985,-524.53,0.00024109,3]
[329573873,1718451140001,-500.0,0.00024109,3]
[329573874,1718451140032,-1502.19,0.00024109,3]
[329573875,1718451140043,-500.0,0.00024109,3]
[329573876,1718451140055,-500.0,0.00024109,3]
[329573877,1718451140084,-500.0,0.00024109,3]
[329573878,1718451140095,-500.0,0.00024109,3]
[329573879,1718451140108,-500.0,0.00024109,3]
[329573880,1718451140122,-500.0,0.00024109,3]
[329573881,1718451140136,-500.0,0.00024109,3]
[329573882,1718451140149,-500.0,0.00024109,3]
[329573883,1718451140160,-500.0,0.00024109,3]
[329573884,1718451140173,-612.77,0.00024109,3]
[329573885,1718451140199,-500.0,0.00024109,3]
[329573886,1718451140219,-500.0,0.00024109,3]
[329573887,1718451140233,-500.0,0.00024109,3]
[329573888,1718451140245,-500.0,0.00024109,3]
[329573889,1718451140263,-546.66,0.00024109,3]
[329573890,1718451140278,-500.0,0.00024109,3]
[329573891,1718451140290,-915.8,0.00024109,3]
[329573892,1718451140301,-500.0,0.00024109,3]
[329573893,1718451140316,-500.0,0.00024109,3]
[329573894,1718451140336,-500.0,0.00024109,3]
[329573895,1718451140354,-553.21,0.00024109,3]
[329573896,1718451140365,-500.0,0.00024109,3]
[329573897,1718451140381,-1033.63,0.00024109,3]
[329573898,1718451140395,-500.0,0.00024109,3]
[329573899,1718451140412,-500.0,0.00024109,3]
[329573900,1718451140439,-2515.97,0.00024109,3]
[329573901,1718451140457,-605.24,0.00024109,3]
[329573902,1718451140486,-500.0,0.00024109,3]
[329573903,1718451140499,-500.0,0.00024109,3]
[329573904,1718451140511,-500.0,0.00024109,3]
[329573905,1718451140524,-500.0,0.00024109,3]
[329573906,1718451140545,-500.0,0.00024109,3]
[329573907,1718451140563,-500.0,0.00024109,3]
[329573908,1718451140577,-500.0,0.00024109,3]
[329573909,1718451140604,-500.0,0.00024109,3]
[329573910,1718451140615,-500.0,0.00024109,3]
[329573911,1718451140633,-210.17706715,0.00024109,3]
[329573912,1718451140646,-1014.91,0.00024109,3]
[329573913,1718451140665,-517.68,0.00024109,3]
[329573914,1718451140676,-500.0,0.00024109,3]
[329573915,1718451140687,-574.11,0.00024109,3]
[329573916,1718451140700,-500.0,0.00024109,3]
[329573917,1718451140720,-500.0,0.00024109,3]
[329573918,1718451140731,-500.0,0.00024109,3]
[329573919,1718451140747,-1028.74,0.00024109,3]
[329573920,1718451140757,-500.0,0.00024109,3]
[329573921,1718451140781,-500.0,0.00024109,3]
[329573922,1718451140795,-500.0,0.00024109,3]
[329573923,1718451140812,-2483.59,0.00024109,3]
[329573924,1718451140844,-287.1530841,0.00024109,3]
[329573925,1718451140855,-500.0,0.00024109,3]
[329573926,1718451140895,-500.0,0.00024109,3]
[329573927,1718451140923,-500.0,0.00024109,3]
[329573928,1718451140935,-500.0,0.00024109,3]
[329573929,1718451140956,-628.76,0.00024109,3]
[329573930,1718451140975,-500.0,0.00024109,3]
[329573931,1718451141003,-500.0,0.00024109,3]
[329573932,1718451141016,-500.0,0.00024109,3]
[329573933,1718451141036,-500.0,0.00024109,3]
[329573934,1718451141057,-500.0,0.00024109,3]
[329573935,1718451141071,-2312.07,0.00024109,3]
[329573936,1718451141083,-500.0,0.00024109,3]
[329573937,1718451141096,-582.73,0.00024109,3]
[329573938,1718451141116,-500.0,0.00024109,3]
[329573939,1718451141127,-1019.86,0.00024109,3]
[329573940,1718451141145,-500.0,0.00024109,3]
[329573941,1718451141157,-505.7,0.00024109,3]
[329573942,1718451141169,-512.53,0.00024109,3]
[329573943,1718451141183,-887.95,0.00024109,3]
[329573944,1718451141204,-526.05,0.00024109,3]
[329573945,1718451141219,-500.0,0.00024109,3]
[329573946,1718451141233,-500.0,0.00024109,3]
[329573947,1718451141251,-500.0,0.00024109,3]
[329573948,1718451141295,-378.64020704,0.00024109,3]
[329573949,1718451141312,-500.0,0.00024109,3]
[329573950,1718451141336,-738.8,0.00024109,3]
[329573951,1718451141350,-500.0,0.00024109,3]
[329573952,1718451141369,-500.0,0.00024109,3]
[329573953,1718451141381,-1715.51,0.00024109,3]
[329573954,1718451141406,-500.0,0.00024109,3]
[329573955,1718451141417,-740.24,0.00024109,3]
[329573956,1718451141442,-960.17,0.00024109,3]
[329573957,1718451141471,-500.0,0.00024109,3]
[329573958,1718451141484,-582.42,0.00024109,3]
[329573959,1718451141495,-653.19,0.00024109,3]
[329573960,1718451141508,-500.0,0.00024109,3]
[329573961,1718451141531,-500.0,0.00024109,3]
[329573962,1718451141549,-500.0,0.00024109,3]
[329573963,1718451141573,-500.0,0.00024109,3]
[329573964,1718451141593,-500.0,0.00024109,3]
[329573965,1718451141643,-638.94,0.00024109,3]
[329573966,1718451141666,-1207.64,0.00024109,3]
[329573967,1718451141678,-1093.81,0.00024109,3]
[329573968,1718451141698,-500.0,0.00024109,3]
[329573969,1718451141710,-163.06481893,0.0002412,2]
[329573970,1718451141723,-5000.0,0.00024124,2]
[329573971,1718451141738,-150.0,0.00024128,2]
[329573972,1718451141751,-1500.0,0.00024128,2]
[329573973,1718451141765,-25000.0,0.00024139,2]
[329573974,1718451141777,-150.0,0.00024144,2]
[329573975,1718451141938,-161.45289767,0.00024149,2]
[329573976,1718451141952,-150.0,0.00024151,2]
[329573977,1718451141968,-249.44162897,0.00024156,2]
[329573978,1718451142001,-150.0,0.00024159,2]
[329573979,1718451142015,-150.0,0.00024181,2]
[329573980,1718451142028,-1500.0,0.00024181,2]
[329573981,1718451142040,-5000.0,0.00024184,2]
[329573982,1718451142057,-150.0,0.00024189,2]
[329573983,1718451142076,-1500.0,0.0002419,2]
[329573984,1718451142098,-286.63919872,0.00024193,2]
[329573985,1718451142113,-241.79306886,0.00024208,2]
[329573986,1718451142123,-782.54731293,0.00024223,2]
[329573987,1718451142134,-152.40462388,0.00024225,2]
[329573988,1718451142145,-1444.2920702,0.00024227,2]
[329573989,1718451142157,-180.0,0.0002423,2]
[329573990,1718451142168,-504.02087361,0.00024236,2]
[329573991,1718451142180,-150.33279369,0.00024245,2]
[329573992,1718451142213,-167.23501912,0.00024249,2]
[329573993,1718451142228,-515.52255554,0.00024269,2]
[329573994,1718451142239,-150.0,0.00024271,2]
[329573995,1718451142250,-163.06481893,0.00024272,2]
[329573996,1718451142260,-153.25370383,0.00024274,2]
[329573997,1718451142271,-150.0,0.0002428,2]
[329573998,1718451142282,-150.0,0.00024283,2]
[329573999,1718451142292,-716.09055291,0.00024284,2]
[329574000,1718451142305,-153.50859949,0.00024285,2]
[329574001,1718451142322,-782.54731293,0.00024287,2]
[329574002,1718451142342,-716.09055291,0.00024305,2]
[329574003,1718451142354,-241.79306886,0.00024316,2]
[329574004,1718451142364,-150.0,0.00024324,2]
[329574005,1718451142376,-1444.2920702,0.00024336,2]
[329574006,1718451142393,-204.25163304,0.0002434,2]
[329574007,1718451142409,-782.54731293,0.0002434,2]
[329574008,1718451142420,-150.0,0.00024343,2]
[329574009,1718451142431,-504.02087361,0.00024345,2]
[329574010,1718451142443,-155.48053764,0.00024348,2]
[329574011,1718451142453,-315.17107415,0.0002435,2]
[329574012,1718451142464,-1500.0,0.00024353,2]
[329574013,1718451142475,-153.72328539,0.00024355,2]
[329574014,1718451142493,-150.0,0.00024359,2]
[329574015,1718451142512,-150.0,0.00024361,2]
[329574016,1718451142528,-504.02087361,0.0002437,2]
[329574017,1718451142545,-300.0,0.00024379,2]
[329574018,1718451142557,-500.0,0.00024383,3]
[329574019,1718451142568,-522.01,0.00024383,3]
[329574020,1718451142590,-500.0,0.00024383,3]
[329574021,1718451142612,-500.0,0.00024383,3]
[329574022,1718451142624,-500.0,0.00024383,3]
[329574023,1718451142636,-500.0,0.00024383,3]
[329574024,1718451142651,-500.12,0.00024383,3]
[329574025,1718451142666,-158.26541692,0.00024383,3]
[329574026,1718451142677,-500.0,0.00024383,3]
[329574027,1718451142688,-500.0,0.00024383,3]
[329574028,1718451142716,-617.41,0.00024383,3]
[329574029,1718451142731,-500.0,0.00024383,3]
[329574030,1718451142755,-500.0,0.00024383,3]
[329574031,1718451142777,-500.0,0.00024383,3]
[329574032,1718451142791,-500.0,0.00024383,3]
[329574033,1718451142806,-500.0,0.00024383,3]
[329574034,1718451142841,-500.0,0.00024383,3]
[329574035,1718451142901,-500.0,0.00024383,3]
[329574036,1718451142937,-500.0,0.00024383,3]
[329574037,1718451142975,-500.0,0.00024383,3]
[329574038,1718451143011,-500.0,0.00024383,3]
[329574039,1718451143030,-500.0,0.00024383,3]
[329574040,1718451143054,-500.0,0.00024383,3]
[329574041,1718451143070,-500.0,0.00024383,3]
[329574042,1718451143082,-425.13995108,0.00024383,3]
[329574043,1718451143099,-500.0,0.00024383,3]
[329574044,1718451143111,-500.0,0.00024383,3]
[329574045,1718451143132,-321.22948447,0.00024383,3]
[329574046,1718451143143,-625.29463224,0.00024383,3]
[329574047,1718451143161,-500.0,0.00024383,3]
[329574048,1718451143172,-593.7,0.00024383,3]
[329574049,1718451143186,-500.0,0.00024383,3]
[329574050,1718451143196,-924.58,0.00024383,3]
[329574051,1718451143207,-723.95,0.00024383,3]
[329574052,1718451143218,-500.0,0.00024383,3]
[329574053,1718451143244,-500.0,0.00024383,3]
[329574054,1718451143275,-672.34,0.00024383,3]
[329574055,1718451143309,-500.0,0.00024383,3]
[329574056,1718451143328,-525.61,0.00024383,3]
[329574057,1718451143349,-500.0,0.00024383,3]
[329574058,1718451143363,-500.0,0.00024383,3]
[329574059,1718451143382,-500.0,0.00024383,3]
[329574060,1718451143393,-500.0,0.00024383,3]
[329574061,1718451143406,-665.35,0.00024383,3]
[329574062,1718451143422,-500.0,0.00024383,3]